bitfinex/quotes_BTCUSD_20241201
["timestamp","ask_amount","ask_price","bid_price","bid_amount"]
[1733076167006,0.2244,97444.0,97443.0,0.5943872]
[1733076167250,0.1,97444.0,97443.0,1.1363992]
[1733076167463,0.1,97444.0,97443.0,0.5943872]
[1733076170538,0.06792392,97444.0,97443.0,0.5943872]
[1733076173638,0.06792392,97444.0,97443.0,1.2943872]
[1733076174264,0.06878712,97444.0,97443.0,1.2943872]
[1733076180129,0.06878712,97444.0,97443.0,1.2853872]
[1733076180327,0.06878712,97444.0,97443.0,1.4082872]
[1733076180531,0.01878712,97444.0,97443.0,1.4082872]
[1733076180778,0.01878712,97444.0,97443.0,1.3992872]
[1733076181812,0.01878712,97444.0,97443.0,1.4002872]
[1733076182370,0.01878712,97444.0,97443.0,1.4012872]
[1733076182865,0.01878712,97444.0,97443.0,1.4002872]
[1733076183085,0.01878712,97444.0,97443.0,1.2773872]
[1733076183351,0.01878712,97444.0,97443.0,1.2783872]
[1733076184231,0.01878712,97444.0,97443.0,1.2773872]
[1733076184442,0.01878712,97444.0,97443.0,1.2783872]
[1733076185075,0.01878712,97444.0,97443.0,1.2773872]
[1733076185298,0.01878712,97444.0,97443.0,1.2783872]
[1733076188691,0.00022437,97453.0,97452.0,0.205229]
[1733076188923,0.00022437,97453.0,97452.0,1.84807421]
[1733076189136,0.00022437,97453.0,97452.0,2.28967184]
[1733076189785,0.00022437,97453.0,97452.0,2.29067184]
[1733076191151,0.00022437,97453.0,97452.0,2.29167184]
[1733076197264,0.00022437,97453.0,97452.0,2.83330883]
[1733076199100,0.00108757,97453.0,97452.0,2.83330883]
[1733076200664,0.00108757,97453.0,97452.0,2.86517484]
[1733076201667,0.00108757,97453.0,97452.0,2.99257484]
[1733076201890,0.00108757,97453.0,97452.0,2.46093785]
[1733076202712,0.00108757,97453.0,97452.0,2.45993785]
[1733076202917,0.00108757,97453.0,97452.0,2.46093785]
[1733076203553,0.00108757,97453.0,97452.0,2.45993785]
[1733076203973,0.00108757,97453.0,97452.0,2.46093785]
[1733076204196,0.00108757,97453.0,97452.0,2.45993785]
[1733076204430,0.00108757,97453.0,97452.0,2.46093785]
[1733076204651,0.12718757,97453.0,97452.0,2.11830885]
[1733076204890,0.00108757,97453.0,97452.0,2.6279643]
[1733076205112,0.00108757,97453.0,97452.0,2.62797172]
[1733076205386,0.00108757,97453.0,97452.0,2.08544284]
[1733076205817,0.00108757,97453.0,97452.0,2.08644284]
[1733076206241,0.00108757,97453.0,97452.0,2.08544284]
[1733076206871,0.00108757,97453.0,97452.0,2.08444284]
[1733076207079,0.00808757,97453.0,97452.0,2.08544284]
[1733076207499,0.01508757,97453.0,97452.0,2.08644284]
[1733076208162,0.14108757,97453.0,97452.0,2.08644284]
[1733076211126,0.14108757,97453.0,97452.0,1.54944284]
[1733076212085,0.12708757,97453.0,97452.0,1.54744284]
[1733076212320,0.12808757,97453.0,97452.0,1.55644284]
[1733076212560,0.12908757,97453.0,97452.0,1.33744284]
[1733076213745,0.15208757,97453.0,97452.0,1.33744284]
[1733076213965,0.12908757,97453.0,97452.0,1.33744284]
[1733076214193,0.14031015,97453.0,97452.0,1.33744284]
[1733076225919,0.01431015,97453.0,97452.0,1.33744284]
[1733076226354,0.00308757,97453.0,97452.0,1.33744284]
[1733076226828,0.00308757,97453.0,97452.0,1.83275395]
[1733076227068,0.00308757,97453.0,97452.0,1.33744284]
[1733076228916,0.00308757,97453.0,97452.0,1.83275395]
[1733076229608,0.00308757,97453.0,97452.0,1.33744284]
[1733076231237,0.00308757,97453.0,97452.0,2.03798295]
[1733076231480,0.00308757,97453.0,97452.0,1.54267184]
[1733076232169,0.00308757,97453.0,97452.0,1.33744284]
[1733076232613,0.00308757,97453.0,97452.0,1.83278588]
[1733076233069,0.00308757,97453.0,97452.0,1.33744284]
[1733076233294,0.00308757,97453.0,97452.0,1.83278666]
[1733076234187,0.00308757,97453.0,97452.0,1.33744284]
[1733076237647,0.00308757,97453.0,97452.0,1.83289059]
[1733076241948,0.00299467,97453.0,97452.0,1.83289059]
[1733076243076,0.00299467,97453.0,97452.0,1.33744284]
[1733076245123,0.00299467,97453.0,97452.0,1.33917024]
[1733076248663,0.12889467,97453.0,97452.0,1.33917024]
[1733076253380,0.15189467,97453.0,97452.0,1.33917024]
[1733076253829,0.15189467,97453.0,97452.0,0.56217024]
[1733076256203,0.00299467,97453.0,97452.0,0.56217024]
[1733076262359,0.07409467,97453.0,97452.0,0.56217024]
[1733076271411,0.07209467,97453.0,97452.0,0.54617024]
[1733076271840,0.07409467,97453.0,97452.0,0.56217024]
[1733076274084,0.07409467,97453.0,97452.0,0.56335985]
[1733076274765,0.15119467,97453.0,97452.0,0.46051464]
[1733076275191,0.16119467,97453.0,97452.0,0.46051464]
[1733076275430,0.17119467,97453.0,97452.0,0.46051464]
[1733076277710,0.17119467,97453.0,97452.0,0.45619214]
[1733076278757,0.13819467,97453.0,97452.0,0.45619214]
[1733076280980,0.16119467,97453.0,97452.0,0.45619214]
[1733076283000,0.11309467,97453.0,97452.0,0.45897519]
[1733076284972,0.00299467,97453.0,97452.0,0.5618204]
[1733076285227,0.01299467,97453.0,97452.0,0.5618204]
[1733076285438,0.00299467,97453.0,97452.0,0.5618204]
[1733076288103,0.02599467,97453.0,97452.0,0.5618204]
[1733076289374,0.0474717,97453.0,97452.0,0.5618204]
[1733076293922,0.0474717,97453.0,97452.0,0.55836836]
[1733076294789,0.0474717,97453.0,97452.0,0.55692035]
[1733076296721,0.0464717,97453.0,97452.0,0.54992035]
[1733076296945,0.1774717,97453.0,97452.0,0.45307514]
[1733076297413,0.15599467,97453.0,97452.0,0.45307514]
[1733076297652,0.10859467,97453.0,97452.0,0.45307514]
[1733076298470,0.10859467,97453.0,97452.0,0.44407514]
[1733076298673,0.10759467,97453.0,97452.0,0.44407514]
[1733076299084,0.10859467,97453.0,97452.0,0.45207514]
[1733076299730,0.18775974,97453.0,97452.0,0.45207514]
[1733076301599,0.10859467,97453.0,97452.0,0.45207514]
[1733076301823,0.02599467,97453.0,97452.0,0.45207514]
[1733076302067,0.02599467,97453.0,97452.0,0.63082035]
[1733076302798,0.02599467,97453.0,97452.0,0.63203164]
[1733076303927,0.02599467,97453.0,97452.0,0.55613164]
[1733076308587,0.00299467,97453.0,97452.0,0.67933164]
[1733076319151,0.00299467,97453.0,97452.0,0.67871966]
[1733076324065,0.00199467,97453.0,97452.0,0.67271966]
[1733076324292,0.00099467,97453.0,97452.0,0.66971966]
[1733076324738,0.00099467,97453.0,97452.0,0.67171966]
[1733076324739,0.00199467,97453.0,97452.0,0.67171966]
[1733076324989,0.00199467,97453.0,97452.0,0.66471966]
[1733076325201,0.00299467,97453.0,97452.0,0.67371966]
[1733076325858,0.09211675,97479.0,97452.0,0.67371966]
[1733076326140,0.2060315,97481.0,97452.0,0.67371966]
[1733076326141,0.2060315,97481.0,97467.0,0.1304]
[1733076326354,0.2060315,97481.0,97472.0,0.10284521]
[1733076326587,0.0008635,97481.0,97473.0,0.10284521]
[1733076326803,0.0008635,97481.0,97473.0,0.10711333]
[1733076326804,0.01161294,97481.0,97473.0,0.10711333]
[1733076327018,0.0008635,97481.0,97473.0,0.10711333]
[1733076327467,0.00092293,97481.0,97473.0,0.10711333]
[1733076328095,0.01163075,97481.0,97473.0,0.10711333]
[1733076328324,0.00092293,97481.0,97473.0,0.10711333]
[1733076328748,0.00192293,97481.0,97473.0,0.10711333]
[1733076329423,0.00192293,97481.0,97473.0,0.10811333]
[1733076330103,0.00192293,97481.0,97473.0,0.10711333]
[1733076330313,0.20517,97480.0,97473.0,0.10711333]
[1733076330519,0.20517,97480.0,97473.0,0.11511333]
[1733076331163,0.41034,97480.0,97473.0,0.11511333]
[1733076331371,0.205182,97475.0,97473.0,0.11111333]
[1733076331814,0.205182,97475.0,97473.0,0.11184521]
[1733076332022,0.077,97478.0,97473.0,0.10784521]
[1733076332251,0.205176,97477.0,97474.0,0.00451272]
[1733076332488,0.205176,97477.0,97475.0,0.10284521]
[1733076332919,0.205176,97477.0,97476.0,0.00488595]
[1733076333131,0.205176,97477.0,97476.0,0.10773116]
[1733076334995,0.20609093,97481.0,97476.0,0.10773116]
[1733076335240,0.20609093,97481.0,97477.0,0.10284521]
[1733076335686,0.20609093,97481.0,97478.0,0.00488538]
[1733076335901,0.20609093,97481.0,97479.0,0.10284521]
[1733076338311,0.20609093,97481.0,97479.0,0.10684521]
[1733076338748,0.20609093,97481.0,97479.0,0.11084521]
[1733076342752,0.1269,97480.0,97479.0,0.11084521]
[1733076344067,0.1269,97480.0,97479.0,0.10684521]
[1733076344734,0.1269,97480.0,97479.0,0.11084521]
[1733076352940,0.1499,97480.0,97479.0,0.11084521]
[1733076353594,0.1499,97480.0,97479.0,0.10684521]
[1733076353822,0.1499,97480.0,97479.0,0.10284521]
[1733076354015,0.1499,97480.0,97479.0,0.10784521]
[1733076354141,0.1499,97480.0,97479.0,0.10584521]
[1733076354364,0.1499,97480.0,97479.0,0.10284521]
[1733076354581,0.1499,97480.0,97479.0,0.004]
[1733076354800,0.1499,97480.0,97479.0,0.008]
[1733076357136,0.1499,97480.0,97479.0,0.11084521]
[1733076357349,0.023,97480.0,97479.0,0.11084521]
[1733076359465,0.20609093,97481.0,97479.0,0.11084521]
[1733076359678,0.20609093,97481.0,97480.0,0.10284521]
[1733076360321,0.20609093,97481.0,97480.0,0.10788001]
[1733076360539,0.20609093,97481.0,97480.0,0.60329413]
[1733076361201,0.20609093,97481.0,97480.0,0.60729413]
[1733076361848,0.20609093,97481.0,97480.0,0.61129413]
[1733076362726,0.20609093,97481.0,97480.0,0.11588001]
[1733076363240,0.20609093,97481.0,97480.0,0.24688001]
[1733076370287,0.00092293,97481.0,97480.0,0.24688001]
[1733076372287,0.00092293,97481.0,97480.0,0.68904001]
[1733076378738,0.00092293,97481.0,97480.0,0.68504001]
[1733076378961,0.00092293,97481.0,97480.0,0.60204001]
[1733076380301,0.00092293,97481.0,97480.0,0.59804001]
[1733076380542,0.00092293,97481.0,97480.0,0.60104001]
[1733076380786,0.00092293,97481.0,97480.0,0.60904001]
[1733076381054,0.00092293,97481.0,97480.0,0.60604001]
[1733076381287,0.00092293,97481.0,97480.0,0.61104001]
[1733076383731,0.00092293,97481.0,97480.0,0.56304001]
[1733076386696,0.00092293,97481.0,97480.0,1.05994327]
[1733076386922,0.00092293,97481.0,97480.0,0.56304001]
[1733076394805,0.00092293,97481.0,97480.0,0.60874001]
[1733076395086,0.00092293,97481.0,97480.0,0.56304001]
[1733076400221,0.00092293,97481.0,97480.0,0.60954001]
[1733076403360,0.00092293,97481.0,97480.0,0.10284521]
[1733076403573,0.20609093,97481.0,97480.0,0.10745853]
[1733076403774,0.20609093,97481.0,97480.0,0.10284521]
[1733076411430,0.25129093,97481.0,97480.0,0.10284521]
[1733076412093,0.20609093,97481.0,97480.0,0.10284521]
[1733076429498,0.00092293,97481.0,97480.0,0.10284521]
[1733076429712,0.00092293,97481.0,97480.0,0.15567816]
[1733076433711,0.00092293,97481.0,97480.0,1.01507816]
[1733076434645,0.00192293,97481.0,97480.0,1.02307816]
[1733076434893,0.00292293,97481.0,97480.0,1.03207816]
[1733076439221,0.00292293,97481.0,97480.0,1.33982816]
[1733076444182,0.00292293,97481.0,97480.0,1.25742816]
[1733076466584,0.00292293,97481.0,97480.0,1.20902816]
[1733076473499,0.00292293,97481.0,97480.0,1.75086863]
[1733076473911,0.00292293,97481.0,97480.0,1.20902816]
[1733076474328,0.00292293,97481.0,97480.0,1.75086863]
[1733076474750,0.00292293,97481.0,97480.0,1.20902816]
[1733076477967,0.13292293,97481.0,97480.0,1.20902816]
[1733076478181,0.00292293,97481.0,97480.0,1.20902816]
[1733076479558,0.05242293,97481.0,97480.0,1.20902816]
[1733076480135,0.00292293,97481.0,97480.0,1.20902816]
[1733076480611,0.33809093,97481.0,97480.0,1.20902816]
[1733076481760,0.33709093,97481.0,97480.0,1.20102816]
[1733076481999,0.33809093,97481.0,97480.0,0.43002816]
[1733076482228,0.37115641,97481.0,97480.0,0.31818295]
[1733076482467,0.37115641,97481.0,97480.0,0.32118295]
[1733076482716,0.37115641,97481.0,97480.0,0.31518295]
[1733076483142,0.37115641,97481.0,97480.0,0.31918295]
[1733076485147,0.37115641,97481.0,97480.0,0.31618295]
[1733076485384,0.37015641,97481.0,97480.0,0.31318295]
[1733076486115,0.37015641,97481.0,97480.0,0.31418295]
[1733076490881,0.37015641,97481.0,97480.0,0.41702816]
[1733076490882,0.34715641,97481.0,97480.0,0.41702816]
[1733076491582,0.29765641,97481.0,97480.0,0.41702816]
[1733076492718,0.29765641,97481.0,97480.0,0.41502816]
[1733076493187,0.29765641,97481.0,97480.0,0.41602816]
[1733076494136,0.29765641,97481.0,97480.0,0.41802816]
[1733076494360,0.29765641,97481.0,97480.0,0.41702816]
[1733076494819,0.29765641,97481.0,97480.0,0.41902816]
[1733076495297,0.01198841,97481.0,97480.0,0.41902816]
[1733076495520,0.00092293,97481.0,97480.0,0.70399816]
[1733076496200,0.00092293,97481.0,97480.0,0.70199816]
[1733076497095,0.00092293,97481.0,97480.0,0.69999816]
[1733076497323,0.00092293,97481.0,97480.0,0.70899816]
[1733076497562,0.00092293,97481.0,97480.0,0.69999816]
[1733076497791,0.00092293,97481.0,97480.0,0.70899816]
[1733076498248,0.00092293,97481.0,97480.0,0.70199816]
[1733076498436,0.00092293,97481.0,97480.0,0.71099816]
[1733076498834,0.00092293,97481.0,97480.0,0.50382816]
[1733076499073,0.00192293,97481.0,97480.0,0.51182816]
[1733076507880,0.00192293,97481.0,97480.0,0.43202816]
[1733076515582,0.00192293,97481.0,97480.0,0.63719816]
[1733076523887,0.00192293,97481.0,97480.0,0.43202816]
[1733076529093,0.20224736,97490.0,97480.0,0.43202816]
[1733076529302,0.20224736,97490.0,97489.0,0.10284521]
[1733076529525,0.20224736,97490.0,97489.0,0.87984521]
[1733076529770,0.20224736,97490.0,97489.0,0.8839936]
[1733076530623,0.20224736,97490.0,97489.0,0.8919936]
[1733076530853,0.19724736,97490.0,97489.0,0.8919936]
[1733076532244,0.19724736,97490.0,97489.0,0.8969936]
[1733076534630,0.19811106,97490.0,97489.0,0.8969936]
[1733076537123,0.0008637,97490.0,97489.0,0.8969936]
[1733076545316,0.0008637,97490.0,97489.0,1.2047236]
[1733076545785,0.0008637,97490.0,97489.0,1.5401746]
[1733076546878,0.0008637,97490.0,97489.0,1.5321746]
[1733076547122,0.0008637,97490.0,97489.0,1.5411746]
[1733076547364,0.0002,97509.0,97504.0,0.01]
[1733076547580,0.0002,97509.0,97506.0,0.31796021]
[1733076547825,0.0002,97509.0,97506.0,0.30796021]
[1733076548034,0.0002,97509.0,97506.0,0.61976911]
[1733076548284,0.0002,97509.0,97506.0,0.77976911]
[1733076548521,0.00088745,97513.0,97512.0,0.01]
[1733076548736,0.00088745,97513.0,97512.0,0.89165988]
[1733076548966,0.00088745,97513.0,97512.0,1.20163241]
[1733076549229,0.00088745,97513.0,97512.0,1.19163241]
[1733076549461,0.00088745,97513.0,97512.0,1.28293241]
[1733076549902,0.00148156,97513.0,97512.0,1.28993241]
[1733076550149,0.00148156,97513.0,97512.0,1.29893241]
[1733076550363,0.00148156,97513.0,97512.0,1.28993241]
[1733076550798,0.00148156,97513.0,97512.0,1.29893241]
[1733076551224,0.00148156,97513.0,97512.0,1.29193241]
[1733076551456,0.00148156,97513.0,97512.0,1.29993241]
[1733076552487,0.00148156,97513.0,97512.0,1.29093241]
[1733076552718,0.00148156,97513.0,97512.0,1.28293241]
[1733076552920,0.00148156,97513.0,97512.0,1.30093241]
[1733076555661,0.00148156,97513.0,97512.0,1.21963241]
[1733076555881,0.00148156,97513.0,97512.0,1.20963241]
[1733076557686,0.20321281,97539.0,97518.0,0.205088]
[1733076557968,0.410096,97538.0,97537.0,0.10284521]
[1733076558624,0.205048,97538.0,97537.0,0.10284521]
[1733076559963,0.205048,97538.0,97537.0,0.10584521]
[1733076561725,0.205048,97538.0,97537.0,0.10784521]
[1733076566735,6.094e-05,97539.0,97537.0,0.10784521]
[1733076567215,0.205048,97538.0,97537.0,0.10784521]
[1733076567631,0.205048,97538.0,97537.0,0.10584521]
[1733076568046,0.205048,97538.0,97537.0,0.10784521]
[1733076568514,0.205048,97538.0,97537.0,0.10484521]
[1733076568927,0.205048,97538.0,97537.0,0.10684521]
[1733076569362,0.205048,97538.0,97537.0,0.10984521]
[1733076569842,0.205048,97538.0,97537.0,0.11390309]
[1733076576798,0.205048,97538.0,97537.0,0.11255767]
[1733076578780,0.00092414,97539.0,97537.0,0.11255767]
[1733076578993,0.00092414,97539.0,97538.0,0.10284521]
[1733076579233,0.00092414,97539.0,97538.0,0.10690457]
[1733076581006,0.00092414,97539.0,97538.0,0.10890457]
[1733076581278,0.00092414,97539.0,97538.0,0.10690457]
[1733076581681,0.00092414,97539.0,97538.0,0.11290457]
[1733076582127,0.00092414,97539.0,97538.0,0.11690457]
[1733076587445,0.00092414,97539.0,97538.0,0.11290457]
[1733076587652,0.00092414,97539.0,97538.0,0.10990457]
[1733076587890,0.00092414,97539.0,97538.0,0.11590457]
[1733076588300,0.00092414,97539.0,97538.0,0.10690457]
[1733076588511,0.00092414,97539.0,97538.0,0.11290457]
[1733076588714,0.00092414,97539.0,97538.0,0.11690457]
[1733076592939,0.04672414,97539.0,97538.0,0.11690457]
[1733076601493,0.04672414,97539.0,97538.0,0.11284521]
[1733076606111,0.24359188,97539.0,97538.0,0.11284521]
[1733076606345,0.24359188,97539.0,97519.0,0.30763]
[1733076606346,0.205086,97520.0,97519.0,0.30763]
[1733076606600,0.205086,97520.0,97519.0,0.41047521]
[1733076606912,0.205086,97520.0,97519.0,0.41577859]
[1733076607568,0.353786,97520.0,97519.0,0.31293338]
[1733076608000,0.353786,97520.0,97519.0,0.31993338]
[1733076608001,0.38579244,97520.0,97519.0,0.31993338]
[1733076608250,0.228086,97520.0,97519.0,0.00133878]
[1733076608472,0.228086,97520.0,97519.0,0.00792647]
[1733076608681,0.353786,97520.0,97519.0,0.0047264]
[1733076608894,0.353786,97520.0,97519.0,0.0067264]
[1733076609303,0.353786,97520.0,97519.0,0.0047264]
[1733076609572,0.353786,97520.0,97519.0,0.0037264]
[1733076609787,0.44535403,97520.0,97519.0,0.0037264]
[1733076611130,0.44535403,97520.0,97519.0,0.0057264]
[1733076612697,0.36486359,97520.0,97519.0,0.0057264]
[1733076615952,0.36486359,97520.0,97519.0,0.10857161]
[1733076620941,0.36572689,97520.0,97519.0,0.10857161]
[1733076622559,0.21702689,97520.0,97519.0,0.10857161]
[1733076635953,0.31702689,97520.0,97519.0,0.10857161]
[1733076640369,0.01,97496.0,97456.0,0.20522]
[1733076640594,0.205116,97506.0,97495.0,0.10284521]
[1733076640816,0.01,97496.0,97494.0,0.3065]
[1733076641055,0.01,97496.0,97495.0,0.10284521]
[1733076642203,0.01,97496.0,97495.0,0.10343932]
[1733076642326,0.011,97496.0,97495.0,0.10343932]
[1733076642528,0.01,97496.0,97495.0,0.10343932]
[1733076642794,0.011,97496.0,97495.0,0.11425447]
[1733076643384,0.011,97496.0,97495.0,0.19315447]
[1733076643585,0.001,97496.0,97495.0,0.19315447]
[1733076643791,0.011,97496.0,97495.0,0.19315447]
[1733076644025,0.012,97496.0,97495.0,0.20115447]
[1733076644676,0.012,97496.0,97495.0,0.20288107]
[1733076647980,0.012,97496.0,97495.0,0.20106592]
[1733076649511,0.012,97496.0,97495.0,0.20672258]
[1733076651475,0.002,97496.0,97485.0,0.023]
[1733076651721,0.01259411,97496.0,97495.0,0.0080136]
[1733076651940,0.01259411,97496.0,97487.0,0.023]
[1733076652167,0.01259411,97496.0,97488.0,0.00181518]
[1733076652371,0.01259411,97496.0,97488.0,0.00983042]
[1733076652799,0.01159411,97496.0,97488.0,0.00983042]
[1733076653071,0.01459411,97496.0,97488.0,0.00983042]
[1733076653710,0.01159411,97496.0,97488.0,0.00983042]
[1733076654098,0.01359411,97496.0,97488.0,0.00983042]
[1733076654317,0.01359411,97496.0,97488.0,0.00725064]
[1733076654550,0.02259411,97496.0,97488.0,0.00825064]
[1733076655186,0.01259411,97496.0,97488.0,0.00825064]
[1733076655392,0.02259411,97496.0,97488.0,0.00825064]
[1733076656026,0.02259411,97496.0,97488.0,0.21340364]
[1733076656237,0.02259411,97496.0,97488.0,0.00825064]
[1733076656448,0.02345831,97496.0,97488.0,0.00825064]
[1733076657117,0.02345831,97496.0,97488.0,0.21340364]
[1733076660644,0.02345831,97496.0,97489.0,0.30772]
[1733076660831,0.02345831,97496.0,97490.0,0.00181516]
[1733076660983,0.02345831,97496.0,97491.0,0.00181516]
[1733076661191,0.02345831,97496.0,97491.0,0.30953516]
[1733076661404,0.02345831,97496.0,97492.0,0.00543633]
[1733076661604,0.01445831,97496.0,97493.0,0.30771]
[1733076662029,0.02045831,97496.0,97494.0,0.00543344]
[1733076662279,0.22559431,97496.0,97494.0,0.00543344]
[1733076662441,0.02545831,97496.0,97494.0,0.00543344]
[1733076662998,0.02045831,97496.0,97494.0,0.00543344]
[1733076663219,0.01745831,97496.0,97494.0,0.00643344]
[1733076663435,0.02645831,97496.0,97494.0,0.00643344]
[1733076664067,0.03545831,97496.0,97494.0,0.00743344]
[1733076664926,0.03545831,97496.0,97495.0,0.30952516]
[1733076665154,0.03545831,97496.0,97495.0,0.30771]
[1733076665390,0.02545831,97496.0,97495.0,0.31314304]
[1733076665881,0.01945831,97496.0,97495.0,0.31314304]
[1733076666320,0.02045831,97496.0,97495.0,0.32014304]
[1733076666759,0.00245831,97496.0,97495.0,0.42298825]
[1733076667191,0.00345831,97496.0,97495.0,0.43198825]
[1733076682913,0.00345831,97496.0,97495.0,0.4319801]
[1733076712158,0.00345831,97496.0,97495.0,0.6371181]
[1733076712376,0.00345831,97496.0,97495.0,0.6601181]
[1733076713252,0.00245831,97496.0,97495.0,0.6531181]
[1733076713686,0.00845831,97496.0,97495.0,0.6541181]
[1733076714059,0.00745831,97496.0,97495.0,0.6451181]
[1733076714279,0.00745831,97496.0,97495.0,0.6461181]
[1733076714480,0.01645831,97496.0,97495.0,0.65703814]
[1733076717456,0.01645831,97496.0,97495.0,0.80703814]
[1733076718619,0.00145831,97496.0,97495.0,0.80503814]
[1733076719054,0.01045831,97496.0,97495.0,0.80603814]
[1733076719265,0.01045831,97496.0,97495.0,0.80503814]
[1733076720106,0.01645831,97496.0,97495.0,0.80603814]
[1733076720541,0.01045831,97496.0,97495.0,0.80503814]
[1733076720985,0.01645831,97496.0,97495.0,0.80603814]
[1733076721210,0.02445831,97496.0,97495.0,0.80703814]
[1733076721423,0.00745831,97496.0,97495.0,0.80603814]
[1733076721683,0.01545831,97496.0,97495.0,0.80703814]
[1733076731495,0.01545831,97496.0,97495.0,0.83033814]
[1733076732600,0.01545831,97496.0,97495.0,0.80703814]
[1733076734756,0.01545831,97496.0,97495.0,1.50703814]
[1733076735417,0.0472,97511.0,97510.0,0.205107]
[1733076735641,0.04737813,97511.0,97510.0,0.30795221]
[1733076735862,0.12507813,97511.0,97510.0,0.62101131]
[1733076736485,0.12507813,97511.0,97510.0,0.41590431]
[1733076736726,0.13107813,97511.0,97510.0,0.41790431]
[1733076736955,0.14007813,97511.0,97510.0,0.41790431]
[1733076737374,0.34518313,97511.0,97510.0,0.39264952]
[1733076737581,0.35518313,97511.0,97510.0,0.27219803]
[1733076738871,0.35518313,97511.0,97510.0,0.27119803]
[1733076739085,0.34918313,97511.0,97510.0,0.27119803]
[1733076739291,0.34018313,97511.0,97510.0,0.27719803]
[1733076739558,0.34018313,97511.0,97510.0,0.28619803]
[1733076739766,0.3509961,97511.0,97510.0,0.27019803]
[1733076740209,0.3509961,97511.0,97510.0,0.28119803]
[1733076740392,0.3509961,97511.0,97510.0,0.27419803]
[1733076740730,0.3509961,97511.0,97510.0,0.28119803]
[1733076745726,0.3609961,97511.0,97510.0,0.17835282]
[1733076748577,0.3618597,97511.0,97510.0,0.17835282]
[1733076749027,0.3518597,97511.0,97510.0,0.28119803]
[1733076751059,0.3418597,97511.0,97510.0,0.28119803]
[1733076751275,0.3518597,97511.0,97510.0,0.28119803]
[1733076754666,0.3418597,97511.0,97510.0,0.28119803]
[1733076754874,0.3518597,97511.0,97510.0,0.28119803]
[1733076771740,0.3518597,97511.0,97510.0,0.28292523]
[1733076783819,0.34104673,97511.0,97510.0,0.28292523]
[1733076795323,0.26334673,97511.0,97510.0,0.28292523]
[1733076795558,0.21614673,97511.0,97510.0,0.28292523]
[1733076797975,0.22718084,97511.0,97510.0,0.28292523]
[1733076806775,0.21614673,97511.0,97510.0,0.28292523]
[1733076811445,0.20614673,97511.0,97510.0,0.28292523]
[1733076811679,0.01104173,97511.0,97510.0,0.28292523]
[1733076813642,0.00104173,97511.0,97510.0,0.28292523]
[1733076813858,0.01104173,97511.0,97510.0,0.28292523]
[1733076818124,0.00104173,97511.0,97510.0,0.28292523]
[1733076818571,0.00104173,97511.0,97510.0,0.40622523]
[1733076819067,0.00104173,97511.0,97510.0,0.61133223]
[1733076819289,0.205065,97530.0,97510.0,0.61133223]
[1733076819511,0.205065,97530.0,97519.0,0.10284521]
[1733076819750,0.205057,97534.0,97519.0,0.10923908]
[1733076819977,0.205057,97534.0,97519.0,0.68812908]
[1733076821551,0.205057,97534.0,97519.0,0.69412908]
[1733076821986,0.205057,97534.0,97519.0,0.70312908]
[1733076827159,0.205057,97534.0,97519.0,0.7015136]
[1733076827612,0.205039,97543.0,97519.0,0.7015136]
[1733076827613,1.0,97550.0,97537.0,0.20505]
[1733076827849,1.0,97550.0,97538.0,0.10759498]
[1733076828071,1.0,97550.0,97538.0,0.56312498]
[1733076830024,1.0,97550.0,97538.0,0.57212498]
[1733076830241,1.0,97550.0,97538.0,0.57712498]
[1733076835672,0.205028,97548.0,97538.0,0.57712498]
[1733076836114,1.0,97550.0,97538.0,0.57712498]
[1733076838845,0.205029,97548.0,97538.0,0.57712498]
[1733076839534,0.205036,97544.0,97538.0,0.57712498]
[1733076839943,0.205029,97548.0,97538.0,0.57712498]
[1733076840592,0.205036,97544.0,97538.0,0.57712498]
[1733076840790,0.205036,97544.0,97538.0,0.56312498]
[1733076841029,0.205036,97544.0,97538.0,0.57212498]
[1733076841240,0.205029,97548.0,97538.0,0.56312498]
[1733076842367,0.205029,97548.0,97538.0,0.56812498]
[1733076842590,0.205029,97548.0,97538.0,0.57712498]
[1733076842808,0.205029,97548.0,97538.0,0.56812498]
[1733076843266,0.205029,97548.0,97538.0,0.57712498]
[1733076843504,0.205029,97548.0,97538.0,0.57212498]
[1733076843934,0.205029,97548.0,97538.0,0.57812498]
[1733076844388,0.205029,97548.0,97538.0,0.56912498]
[1733076844620,1.01,97550.0,97541.0,0.01]
[1733076844850,1.01,97550.0,97548.0,0.10284521]
[1733076844851,0.205225,97549.0,97548.0,0.10284521]
[1733076845071,0.205225,97549.0,97548.0,0.10757215]
[1733076845306,0.205225,97549.0,97548.0,0.56307215]
[1733076845815,0.20531025,97549.0,97548.0,0.56307215]
[1733076846269,0.20531025,97549.0,97548.0,0.57007215]
[1733076849062,0.00028525,97549.0,97548.0,0.57007215]
[1733076849521,0.00028525,97549.0,97548.0,0.59307215]
[1733076849940,0.00028525,97549.0,97548.0,0.59007215]
[1733076850149,0.00028525,97549.0,97548.0,0.58607215]
[1733076850369,0.00028525,97549.0,97548.0,0.58907215]
[1733076850602,0.00028525,97549.0,97548.0,0.59007215]
[1733076850811,0.00028525,97549.0,97548.0,0.58907215]
[1733076851249,0.00028525,97549.0,97548.0,0.66547215]
[1733076851459,0.00028525,97549.0,97548.0,1.01077215]
[1733076852157,0.00028525,97549.0,97548.0,1.01177215]
[1733076852364,0.00028525,97549.0,97548.0,1.00877215]
[1733076852572,0.00028525,97549.0,97548.0,1.15877215]
[1733076853451,0.00028525,97549.0,97548.0,1.15977215]
[1733076853660,0.99771693,97550.0,97549.0,0.228025]
[1733076853885,0.99771693,97550.0,97549.0,0.33087021]
[1733076854084,0.99771693,97550.0,97549.0,0.79108312]
[1733076855300,0.99771693,97550.0,97549.0,0.79208312]
[1733076855759,0.99771693,97550.0,97549.0,0.79308312]
[1733076856924,0.99771693,97550.0,97549.0,1.49308312]
[1733076861562,0.99771693,97550.0,97549.0,2.08100867]
[1733076862462,0.99771693,97550.0,97549.0,1.49308312]
[1733076864719,0.99771693,97550.0,97549.0,1.49208312]
[1733076865151,0.99771693,97550.0,97549.0,1.49308312]
[1733076865373,0.99771693,97550.0,97549.0,1.49208312]
[1733076865795,0.99771693,97550.0,97549.0,1.49308312]
[1733076866226,0.99771693,97550.0,97549.0,1.49394642]
[1733076866457,0.99771693,97550.0,97549.0,2.07782627]
[1733076867553,0.99771693,97550.0,97549.0,1.49394642]
[1733076869597,0.99771693,97550.0,97549.0,1.64394642]
[1733076871918,0.99771693,97550.0,97549.0,1.64194642]
[1733076872125,0.99771693,97550.0,97549.0,1.64394642]
[1733076872338,0.43933204,97550.0,97549.0,1.64394642]
[1733076872569,0.43933204,97550.0,97549.0,1.64194642]
[1733076872780,0.43933204,97550.0,97549.0,1.64294642]
[1733076872999,0.43933204,97550.0,97549.0,1.77174642]
[1733076873689,0.43933204,97550.0,97549.0,1.77074642]
[1733076873908,0.42777245,97550.0,97549.0,1.77174642]
[1733076874365,0.38924047,97550.0,97549.0,1.77074642]
[1733076874912,0.38924047,97550.0,97549.0,1.77274642]
[1733076875407,0.38924047,97550.0,97549.0,1.77074642]